{"text_format":"1","workbook":"xlsx","n_sheets":3,"sheets":["ИБ_Прием","ИБ Выдача","Лист3"],"not_rendered":{"charts":0,"images":0,"macros":1,"external_links":0,"defined_names":1,"comments":0,"pivot_tables":0},"unopened":[],"bounds":{"document_bytes":16777216,"sheet_cells":100000,"rows_first":2000,"rows_last":500,"rows_between":2000,"halvings":0,"cell_chars":16384,"cell_head_chars":4096},"cells_cut":0,"cells_raw":0,"read":"whole","date_system":"1900"}

{"sheet":"ИБ_Прием","index":0,"n_rows":535,"n_cols":20,"rows_kept":535,"cut":false,"hidden":false,"merged":[]}
[]
["№пп","Дата поступления","цех","Номер вагона","Наименование","Вид ремонта","Номеннклатурный номер","Количес-тво","№ карты приемочного контроля/ протокол испытаний","Продукцию сдал","Продукцию принял на склад","Тип изделия (серия, фирма, модель, артикул, код ОКПО и т.п.)","цена","Примечание","Дата регистрации записи (служебный столбец)","цех","Наименование","Остаток","Продукцию сдал","Продукцию принял на склад"]
["1","01.06.2017","ПОО","2500","ДВШ","ТР-3","13245678",2,"1","Панов А.С.","Ишевских В.А.","Сармат","25","нет","13.30.48 01.06.2017","ПОО","ДВШ",{"$f":"SUMIFS($H$3:$H$100,E$3:E$100,Q3)","v":4},"Панов А.С.","Ишевских В.А."]
["2","01.06.2017","Радио","1101","УГСП","ТР-3","98765432",2,"2","Сурин В.Б.","Ишевских В.А.","Сармат","23","нет","14.51.14 01.06.2017","Радио","УГСП",{"$f":"SUMIFS($H$3:$H$100,E$3:E$100,Q4)","v":11},"Сурин В.Б."]
["2","01.06.2017","Радио","1102","УГСП","ТР-3","98765432",2,"3","Сурин В.Б.","Ишевских В.А.","Сармат","23","нет","14.51.14 01.06.2017","ТРП","ДРП",1,"Гужов А.Ю."]
["4","01.06.2017","ТРП","1301","ДРП","ТР-2","65599992",1,"1","Гужов А.Ю.","Ишевских В.А.","","","","15.50.40 01.06.2017",null,"РТ-300/300",1]
["4","01.06.2017","ТРП","1302","РТ-300/300","ТР-2","65887978",1,"52","Гужов А.Ю.","Ишевских В.А.","","","","15.50.40 01.06.2017",null,"ИС-02",2]
["6","01.06.2017","ПОО","0399","ДВШ","ТР-3","13245678",2,"6","Панов А.С.","Ишевских В.А.","сармат","464","нет","15.58.30 01.06.2017",null,"",0]
["7","01.06.2017","ПОО","0400","УГСП","ТО-1","98765432",2,"10","Панов А.С.","Ишевских В.А.","Сармат","","","16.00.22 01.06.2017",null,null,0]
["7","01.06.2017","ПОО","11290","УГСП","ТО-1","98765432",2,"11","Панов А.С.","Ишевских В.А.","Сармат","","","16.00.22 01.06.2017",null,null,0]
["7","01.06.2017","ПОО","0400","ИС-02","ТО-1","56465132",2,"12","Панов А.С.","Ишевских В.А.","Сармат","","","16.00.22 01.06.2017",null,null,0]
["10","01.06.2017","ПОО","1","УГСП","2","ДВШ",3,"4","Панов А.С.","Ишевских В.А.","5","6","7","22.26.08 01.06.2017",null,null,0]
["10","01.06.2017","ПОО","","","","",0,"","Панов А.С.","Ишевских В.А.","","","","22.26.08 01.06.2017",null,null,0]
[null,null,null,null,null,null,null,null,null,null,null,null,null,null,null,null,null,0]
[null,null,null,null,null,null,null,null,null,null,null,null,null,null,null,null,null,0]
[null,null,null,null,null,null,null,null,null,null,null,null,null,null,null,null,null,0]
[null,null,null,null,null,null,null,null,null,null,null,null,null,null,null,null,null,0]
[null,null,null,null,null,null,null,null,null,null,null,null,null,null,null,null,null,0]
[null,null,null,null,null,null,null,null,null,null,null,null,null,null,null,null,null,0]
[null,null,null,null,null,null,null,null,null,null,null,null,null,null,null,null,null,0]
[null,null,null,null,null,null,null,null,null,null,null,null,null,null,null,null,null,0]
[null,null,null,null,null,null,null,null,null,null,null,null,null,null,null,null,null,0]
[null,null,null,null,null,null,null,null,null,null,null,null,null,null,null,null,null,0]
[null,null,null,null,null,null,null,null,null,null,null,null,null,null,null,null,null,0]
[null,null,null,null,null,null,null,null,null,null,null,null,null,null,null,null,null,0]
[null,null,null,null,null,null,null,null,null,null,null,null,null,null,null,null,null,0]
[null,null,null,null,null,null,null,null,null,null,null,null,null,null,null,null,null,0]
[null,null,null,null,null,null,null,null,null,null,null,null,null,null,null,null,null,0]
[null,null,null,null,null,null,null,null,null,null,null,null,null,null,null,null,null,0]
[null,null,null,null,null,null,null,null,null,null,null,null,null,null,null,null,null,0]
[null,null,null,null,null,null,null,null,null,null,null,null,null,null,null,null,null,0]
[null,null,null,null,null,null,null,null,null,null,null,null,null,null,null,null,null,0]
[null,null,null,null,null,null,null,null,null,null,null,null,null,null,null,null,null,0]
[null,null,null,null,null,null,null,null,null,null,null,null,null,null,null,null,null,0]
[null,null,null,null,null,null,null,null,null,null,null,null,null,null,null,null,null,0]
[null,null,null,null,null,null,null,null,null,null,null,null,null,null,null,null,null,0]
[null,null,null,null,null,null,null,null,null,null,null,null,null,null,null,null,null,0]
[null,null,null,null,null,null,null,null,null,null,null,null,null,null,null,null,null,0]
[null,null,null,null,null,null,null,null,null,null,null,null,null,null,null,null,null,0]
[null,null,null,null,null,null,null,null,null,null,null,null,null,null,null,null,null,0]
[null,null,null,null,null,null,null,null,null,null,null,null,null,null,null,null,null,0]
[null,null,null,null,null,null,null,null,null,null,null,null,null,null,null,null,null,0]
[null,null,null,null,null,null,null,null,null,null,null,null,null,null,null,null,null,0]
[null,null,null,null,null,null,null,null,null,null,null,null,null,null,null,null,null,0]
[null,null,null,null,null,null,null,null,null,null,null,null,null,null,null,null,null,0]
[null,null,null,null,null,null,null,null,null,null,null,null,null,null,null,null,null,0]
[null,null,null,null,null,null,null,null,null,null,null,null,null,null,null,null,null,0]
[null,null,null,null,null,null,null,null,null,null,null,null,null,null,null,null,null,0]
[null,null,null,null,null,null,null,null,null,null,null,null,null,null,null,null,null,0]
[null,null,null,null,null,null,null,null,null,null,null,null,null,null,null,null,null,0]
[null,null,null,null,null,null,null,null,null,null,null,null,null,null,null,null,null,0]
[null,null,null,null,null,null,null,null,null,null,null,null,null,null,null,null,null,0]
[null,null,null,null,null,null,null,null,null,null,null,null,null,null,null,null,null,0]
[null,null,null,null,null,null,null,null,null,null,null,null,null,null,null,null,null,0]
[null,null,null,null,null,null,null,null,null,null,null,null,null,null,null,null,null,0]
[null,null,null,null,null,null,null,null,null,null,null,null,null,null,null,null,null,0]
[null,null,null,null,null,null,null,null,null,null,null,null,null,null,null,null,null,0]
[null,null,null,null,null,null,null,null,null,null,null,null,null,null,null,null,null,0]
[null,null,null,null,null,null,null,null,null,null,null,null,null,null,null,null,null,0]
[null,null,null,null,null,null,null,null,null,null,null,null,null,null,null,null,null,0]
[null,null,null,null,null,null,null,null,null,null,null,null,null,null,null,null,null,0]
[null,null,null,null,null,null,null,null,null,null,null,null,null,null,null,null,null,0]
[null,null,null,null,null,null,null,null,null,null,null,null,null,null,null,null,null,0]
[null,null,null,null,null,null,null,null,null,null,null,null,null,null,null,null,null,0]
[null,null,null,null,null,null,null,null,null,null,null,null,null,null,null,null,null,0]
[null,null,null,null,null,null,null,null,null,null,null,null,null,null,null,null,null,0]
[null,null,null,null,null,null,null,null,null,null,null,null,null,null,null,null,null,0]
[null,null,null,null,null,null,null,null,null,null,null,null,null,null,null,null,null,{"$f":"SUMIFS($H$3:$H$100,E$3:E$100,Q68)","v":0}]
[null,null,null,null,null,null,null,null,null,null,null,null,null,null,null,null,null,0]
[null,null,null,null,null,null,null,null,null,null,null,null,null,null,null,null,null,0]
[null,null,null,null,null,null,null,null,null,null,null,null,null,null,null,null,null,0]
[null,null,null,null,null,null,null,null,null,null,null,null,null,null,null,null,null,0]
[null,null,null,null,null,null,null,null,null,null,null,null,null,null,null,null,null,0]
[null,null,null,null,null,null,null,null,null,null,null,null,null,null,null,null,null,0]
[null,null,null,null,null,null,null,null,null,null,null,null,null,null,null,null,null,0]
[null,null,null,null,null,null,null,null,null,null,null,null,null,null,null,null,null,0]
[null,null,null,null,null,null,null,null,null,null,null,null,null,null,null,null,null,0]
[null,null,null,null,null,null,null,null,null,null,null,null,null,null,null,null,null,0]
[null,null,null,null,null,null,null,null,null,null,null,null,null,null,null,null,null,0]
[null,null,null,null,null,null,null,null,null,null,null,null,null,null,null,null,null,0]
[null,null,null,null,null,null,null,null,null,null,null,null,null,null,null,null,null,0]
[null,null,null,null,null,null,null,null,null,null,null,null,null,null,null,null,null,0]
[null,null,null,null,null,null,null,null,null,null,null,null,null,null,null,null,null,0]
[null,null,null,null,null,null,null,null,null,null,null,null,null,null,null,null,null,0]
[null,null,null,null,null,null,null,null,null,null,null,null,null,null,null,null,null,0]
[null,null,null,null,null,null,null,null,null,null,null,null,null,null,null,null,null,0]
[null,null,null,null,null,null,null,null,null,null,null,null,null,null,null,null,null,0]
[null,null,null,null,null,null,null,null,null,null,null,null,null,null,null,null,null,0]
[null,null,null,null,null,null,null,null,null,null,null,null,null,null,null,null,null,0]
[null,null,null,null,null,null,null,null,null,null,null,null,null,null,null,null,null,0]
[null,null,null,null,null,null,null,null,null,null,null,null,null,null,null,null,null,0]
[null,null,null,null,null,null,null,null,null,null,null,null,null,null,null,null,null,0]
[null,null,null,null,null,null,null,null,null,null,null,null,null,null,null,null,null,0]
[null,null,null,null,null,null,null,null,null,null,null,null,null,null,null,null,null,0]
[null,null,null,null,null,null,null,null,null,null,null,null,null,null,null,null,null,0]
[null,null,null,null,null,null,null,null,null,null,null,null,null,null,null,null,null,0]
[null,null,null,null,null,null,null,null,null,null,null,null,null,null,null,null,null,0]
[null,null,null,null,null,null,null,null,null,null,null,null,null,null,null,null,null,0]
[null,null,null,null,null,null,null,null,null,null,null,null,null,null,null,null,null,0]
[null,null,null,null,null,null,null,null,null,null,null,null,null,null,null,null,null,0]
[null,null,null,null,null,null,null,null,null,null,null,null,null,null,null,null,null,0]
[null,null,null,null,null,null,null,null,null,null,null,null,null,null,null,null,null,0]
[null,null,null,null,null,null,null,null,null,null,null,null,null,null,null,null,null,0]
[null,null,null,null,null,null,null,null,null,null,null,null,null,null,null,null,null,0]
[null,null,null,null,null,null,null,null,null,null,null,null,null,null,null,null,null,0]
[null,null,null,null,null,null,null,null,null,null,null,null,null,null,null,null,null,0]
[null,null,null,null,null,null,null,null,null,null,null,null,null,null,null,null,null,0]
[null,null,null,null,null,null,null,null,null,null,null,null,null,null,null,null,null,0]
[null,null,null,null,null,null,null,null,null,null,null,null,null,null,null,null,null,0]
[null,null,null,null,null,null,null,null,null,null,null,null,null,null,null,null,null,0]
[null,null,null,null,null,null,null,null,null,null,null,null,null,null,null,null,null,0]
[null,null,null,null,null,null,null,null,null,null,null,null,null,null,null,null,null,0]
[null,null,null,null,null,null,null,null,null,null,null,null,null,null,null,null,null,0]
[null,null,null,null,null,null,null,null,null,null,null,null,null,null,null,null,null,0]
[null,null,null,null,null,null,null,null,null,null,null,null,null,null,null,null,null,0]
[null,null,null,null,null,null,null,null,null,null,null,null,null,null,null,null,null,0]
[null,null,null,null,null,null,null,null,null,null,null,null,null,null,null,null,null,0]
[null,null,null,null,null,null,null,null,null,null,null,null,null,null,null,null,null,0]
[null,null,null,null,null,null,null,null,null,null,null,null,null,null,null,null,null,0]
[null,null,null,null,null,null,null,null,null,null,null,null,null,null,null,null,null,0]
[null,null,null,null,null,null,null,null,null,null,null,null,null,null,null,null,null,0]
[null,null,null,null,null,null,null,null,null,null,null,null,null,null,null,null,null,0]
[null,null,null,null,null,null,null,null,null,null,null,null,null,null,null,null,null,0]
[null,null,null,null,null,null,null,null,null,null,null,null,null,null,null,null,null,0]
[null,null,null,null,null,null,null,null,null,null,null,null,null,null,null,null,null,0]
[null,null,null,null,null,null,null,null,null,null,null,null,null,null,null,null,null,0]
[null,null,null,null,null,null,null,null,null,null,null,null,null,null,null,null,null,0]
[null,null,null,null,null,null,null,null,null,null,null,null,null,null,null,null,null,0]
[null,null,null,null,null,null,null,null,null,null,null,null,null,null,null,null,null,0]
[null,null,null,null,null,null,null,null,null,null,null,null,null,null,null,null,null,0]
[null,null,null,null,null,null,null,null,null,null,null,null,null,null,null,null,null,0]
[null,null,null,null,null,null,null,null,null,null,null,null,null,null,null,null,null,{"$f":"SUMIFS($H$3:$H$100,E$3:E$100,Q132)","v":0}]
[null,null,null,null,null,null,null,null,null,null,null,null,null,null,null,null,null,0]
[null,null,null,null,null,null,null,null,null,null,null,null,null,null,null,null,null,0]
[null,null,null,null,null,null,null,null,null,null,null,null,null,null,null,null,null,0]
[null,null,null,null,null,null,null,null,null,null,null,null,null,null,null,null,null,0]
[null,null,null,null,null,null,null,null,null,null,null,null,null,null,null,null,null,0]
[null,null,null,null,null,null,null,null,null,null,null,null,null,null,null,null,null,0]
[null,null,null,null,null,null,null,null,null,null,null,null,null,null,null,null,null,0]
[null,null,null,null,null,null,null,null,null,null,null,null,null,null,null,null,null,0]
[null,null,null,null,null,null,null,null,null,null,null,null,null,null,null,null,null,0]
[null,null,null,null,null,null,null,null,null,null,null,null,null,null,null,null,null,0]
[null,null,null,null,null,null,null,null,null,null,null,null,null,null,null,null,null,0]
[null,null,null,null,null,null,null,null,null,null,null,null,null,null,null,null,null,0]
[null,null,null,null,null,null,null,null,null,null,null,null,null,null,null,null,null,0]
[null,null,null,null,null,null,null,null,null,null,null,null,null,null,null,null,null,0]
[null,null,null,null,null,null,null,null,null,null,null,null,null,null,null,null,null,0]
[null,null,null,null,null,null,null,null,null,null,null,null,null,null,null,null,null,0]
[null,null,null,null,null,null,null,null,null,null,null,null,null,null,null,null,null,0]
[null,null,null,null,null,null,null,null,null,null,null,null,null,null,null,null,null,0]
[null,null,null,null,null,null,null,null,null,null,null,null,null,null,null,null,null,0]
[null,null,null,null,null,null,null,null,null,null,null,null,null,null,null,null,null,0]
[null,null,null,null,null,null,null,null,null,null,null,null,null,null,null,null,null,0]
[null,null,null,null,null,null,null,null,null,null,null,null,null,null,null,null,null,0]
[null,null,null,null,null,null,null,null,null,null,null,null,null,null,null,null,null,0]
[null,null,null,null,null,null,null,null,null,null,null,null,null,null,null,null,null,0]
[null,null,null,null,null,null,null,null,null,null,null,null,null,null,null,null,null,0]
[null,null,null,null,null,null,null,null,null,null,null,null,null,null,null,null,null,0]
[null,null,null,null,null,null,null,null,null,null,null,null,null,null,null,null,null,0]
[null,null,null,null,null,null,null,null,null,null,null,null,null,null,null,null,null,0]
[null,null,null,null,null,null,null,null,null,null,null,null,null,null,null,null,null,0]
[null,null,null,null,null,null,null,null,null,null,null,null,null,null,null,null,null,0]
[null,null,null,null,null,null,null,null,null,null,null,null,null,null,null,null,null,0]
[null,null,null,null,null,null,null,null,null,null,null,null,null,null,null,null,null,0]
[null,null,null,null,null,null,null,null,null,null,null,null,null,null,null,null,null,0]
[null,null,null,null,null,null,null,null,null,null,null,null,null,null,null,null,null,0]
[null,null,null,null,null,null,null,null,null,null,null,null,null,null,null,null,null,0]
[null,null,null,null,null,null,null,null,null,null,null,null,null,null,null,null,null,0]
[null,null,null,null,null,null,null,null,null,null,null,null,null,null,null,null,null,0]
[null,null,null,null,null,null,null,null,null,null,null,null,null,null,null,null,null,0]
[null,null,null,null,null,null,null,null,null,null,null,null,null,null,null,null,null,0]
[null,null,null,null,null,null,null,null,null,null,null,null,null,null,null,null,null,0]
[null,null,null,null,null,null,null,null,null,null,null,null,null,null,null,null,null,0]
[null,null,null,null,null,null,null,null,null,null,null,null,null,null,null,null,null,0]
[null,null,null,null,null,null,null,null,null,null,null,null,null,null,null,null,null,0]
[null,null,null,null,null,null,null,null,null,null,null,null,null,null,null,null,null,0]
[null,null,null,null,null,null,null,null,null,null,null,null,null,null,null,null,null,0]
[null,null,null,null,null,null,null,null,null,null,null,null,null,null,null,null,null,0]
[null,null,null,null,null,null,null,null,null,null,null,null,null,null,null,null,null,0]
[null,null,null,null,null,null,null,null,null,null,null,null,null,null,null,null,null,0]
[null,null,null,null,null,null,null,null,null,null,null,null,null,null,null,null,null,0]
[null,null,null,null,null,null,null,null,null,null,null,null,null,null,null,null,null,0]
[null,null,null,null,null,null,null,null,null,null,null,null,null,null,null,null,null,0]
[null,null,null,null,null,null,null,null,null,null,null,null,null,null,null,null,null,0]
[null,null,null,null,null,null,null,null,null,null,null,null,null,null,null,null,null,0]
[null,null,null,null,null,null,null,null,null,null,null,null,null,null,null,null,null,0]
[null,null,null,null,null,null,null,null,null,null,null,null,null,null,null,null,null,0]
[null,null,null,null,null,null,null,null,null,null,null,null,null,null,null,null,null,0]
[null,null,null,null,null,null,null,null,null,null,null,null,null,null,null,null,null,0]
[null,null,null,null,null,null,null,null,null,null,null,null,null,null,null,null,null,0]
[null,null,null,null,null,null,null,null,null,null,null,null,null,null,null,null,null,0]
[null,null,null,null,null,null,null,null,null,null,null,null,null,null,null,null,null,0]
[null,null,null,null,null,null,null,null,null,null,null,null,null,null,null,null,null,0]
[null,null,null,null,null,null,null,null,null,null,null,null,null,null,null,null,null,0]
[null,null,null,null,null,null,null,null,null,null,null,null,null,null,null,null,null,0]
[null,null,null,null,null,null,null,null,null,null,null,null,null,null,null,null,null,{"$f":"SUMIFS($H$3:$H$100,E$3:E$100,Q196)","v":0}]
[null,null,null,null,null,null,null,null,null,null,null,null,null,null,null,null,null,0]
[null,null,null,null,null,null,null,null,null,null,null,null,null,null,null,null,null,0]
[null,null,null,null,null,null,null,null,null,null,null,null,null,null,null,null,null,0]
[null,null,null,null,null,null,null,null,null,null,null,null,null,null,null,null,null,0]
[null,null,null,null,null,null,null,null,null,null,null,null,null,null,null,null,null,0]
[null,null,null,null,null,null,null,null,null,null,null,null,null,null,null,null,null,0]
[null,null,null,null,null,null,null,null,null,null,null,null,null,null,null,null,null,0]
[null,null,null,null,null,null,null,null,null,null,null,null,null,null,null,null,null,0]
[null,null,null,null,null,null,null,null,null,null,null,null,null,null,null,null,null,0]
[null,null,null,null,null,null,null,null,null,null,null,null,null,null,null,null,null,0]
[null,null,null,null,null,null,null,null,null,null,null,null,null,null,null,null,null,0]
[null,null,null,null,null,null,null,null,null,null,null,null,null,null,null,null,null,0]
[null,null,null,null,null,null,null,null,null,null,null,null,null,null,null,null,null,0]
[null,null,null,null,null,null,null,null,null,null,null,null,null,null,null,null,null,0]
[null,null,null,null,null,null,null,null,null,null,null,null,null,null,null,null,null,0]
[null,null,null,null,null,null,null,null,null,null,null,null,null,null,null,null,null,0]
[null,null,null,null,null,null,null,null,null,null,null,null,null,null,null,null,null,0]
[null,null,null,null,null,null,null,null,null,null,null,null,null,null,null,null,null,0]
[null,null,null,null,null,null,null,null,null,null,null,null,null,null,null,null,null,0]
[null,null,null,null,null,null,null,null,null,null,null,null,null,null,null,null,null,0]
[null,null,null,null,null,null,null,null,null,null,null,null,null,null,null,null,null,0]
[null,null,null,null,null,null,null,null,null,null,null,null,null,null,null,null,null,0]
[null,null,null,null,null,null,null,null,null,null,null,null,null,null,null,null,null,0]
[null,null,null,null,null,null,null,null,null,null,null,null,null,null,null,null,null,0]
[null,null,null,null,null,null,null,null,null,null,null,null,null,null,null,null,null,0]
[null,null,null,null,null,null,null,null,null,null,null,null,null,null,null,null,null,0]
[null,null,null,null,null,null,null,null,null,null,null,null,null,null,null,null,null,0]
[null,null,null,null,null,null,null,null,null,null,null,null,null,null,null,null,null,0]
[null,null,null,null,null,null,null,null,null,null,null,null,null,null,null,null,null,0]
[null,null,null,null,null,null,null,null,null,null,null,null,null,null,null,null,null,0]
[null,null,null,null,null,null,null,null,null,null,null,null,null,null,null,null,null,0]
[null,null,null,null,null,null,null,null,null,null,null,null,null,null,null,null,null,0]
[null,null,null,null,null,null,null,null,null,null,null,null,null,null,null,null,null,0]
[null,null,null,null,null,null,null,null,null,null,null,null,null,null,null,null,null,0]
[null,null,null,null,null,null,null,null,null,null,null,null,null,null,null,null,null,0]
[{"$f":"IF(ISBLANK(C232),\"\",COUNTA($C$3:C232))","v":""},null,null,null,null,null,null,null,null,null,null,null,null,null,null,null,null,0]
[{"$f":"IF(ISBLANK(C233),\"\",COUNTA($C$3:C233))","v":""},null,null,null,null,null,null,null,null,null,null,null,null,null,null,null,null,0]
[{"$f":"IF(ISBLANK(C234),\"\",COUNTA($C$3:C234))","v":""},null,null,null,null,null,null,null,null,null,null,null,null,null,null,null,null,0]
[{"$f":"IF(ISBLANK(C235),\"\",COUNTA($C$3:C235))","v":""},null,null,null,null,null,null,null,null,null,null,null,null,null,null,null,null,0]
[{"$f":"IF(ISBLANK(C236),\"\",COUNTA($C$3:C236))","v":""},null,null,null,null,null,null,null,null,null,null,null,null,null,null,null,null,0]
[{"$f":"IF(ISBLANK(C237),\"\",COUNTA($C$3:C237))","v":""},null,null,null,null,null,null,null,null,null,null,null,null,null,null,null,null,0]
[{"$f":"IF(ISBLANK(C238),\"\",COUNTA($C$3:C238))","v":""},null,null,null,null,null,null,null,null,null,null,null,null,null,null,null,null,0]
[{"$f":"IF(ISBLANK(C239),\"\",COUNTA($C$3:C239))","v":""},null,null,null,null,null,null,null,null,null,null,null,null,null,null,null,null,0]
[{"$f":"IF(ISBLANK(C240),\"\",COUNTA($C$3:C240))","v":""},null,null,null,null,null,null,null,null,null,null,null,null,null,null,null,null,0]
[{"$f":"IF(ISBLANK(C241),\"\",COUNTA($C$3:C241))","v":""},null,null,null,null,null,null,null,null,null,null,null,null,null,null,null,null,0]
[{"$f":"IF(ISBLANK(C242),\"\",COUNTA($C$3:C242))","v":""},null,null,null,null,null,null,null,null,null,null,null,null,null,null,null,null,0]
[{"$f":"IF(ISBLANK(C243),\"\",COUNTA($C$3:C243))","v":""},null,null,null,null,null,null,null,null,null,null,null,null,null,null,null,null,0]
[{"$f":"IF(ISBLANK(C244),\"\",COUNTA($C$3:C244))","v":""},null,null,null,null,null,null,null,null,null,null,null,null,null,null,null,null,0]
[{"$f":"IF(ISBLANK(C245),\"\",COUNTA($C$3:C245))","v":""},null,null,null,null,null,null,null,null,null,null,null,null,null,null,null,null,0]
[{"$f":"IF(ISBLANK(C246),\"\",COUNTA($C$3:C246))","v":""},null,null,null,null,null,null,null,null,null,null,null,null,null,null,null,null,0]
[{"$f":"IF(ISBLANK(C247),\"\",COUNTA($C$3:C247))","v":""},null,null,null,null,null,null,null,null,null,null,null,null,null,null,null,null,0]
[{"$f":"IF(ISBLANK(C248),\"\",COUNTA($C$3:C248))","v":""},null,null,null,null,null,null,null,null,null,null,null,null,null,null,null,null,0]
[{"$f":"IF(ISBLANK(C249),\"\",COUNTA($C$3:C249))","v":""},null,null,null,null,null,null,null,null,null,null,null,null,null,null,null,null,0]
[{"$f":"IF(ISBLANK(C250),\"\",COUNTA($C$3:C250))","v":""},null,null,null,null,null,null,null,null,null,null,null,null,null,null,null,null,0]
[{"$f":"IF(ISBLANK(C251),\"\",COUNTA($C$3:C251))","v":""},null,null,null,null,null,null,null,null,null,null,null,null,null,null,null,null,0]
[{"$f":"IF(ISBLANK(C252),\"\",COUNTA($C$3:C252))","v":""},null,null,null,null,null,null,null,null,null,null,null,null,null,null,null,null,0]
[{"$f":"IF(ISBLANK(C253),\"\",COUNTA($C$3:C253))","v":""},null,null,null,null,null,null,null,null,null,null,null,null,null,null,null,null,0]
[{"$f":"IF(ISBLANK(C254),\"\",COUNTA($C$3:C254))","v":""},null,null,null,null,null,null,null,null,null,null,null,null,null,null,null,null,0]
[{"$f":"IF(ISBLANK(C255),\"\",COUNTA($C$3:C255))","v":""},null,null,null,null,null,null,null,null,null,null,null,null,null,null,null,null,0]
[{"$f":"IF(ISBLANK(C256),\"\",COUNTA($C$3:C256))","v":""},null,null,null,null,null,null,null,null,null,null,null,null,null,null,null,null,0]
[{"$f":"IF(ISBLANK(C257),\"\",COUNTA($C$3:C257))","v":""},null,null,null,null,null,null,null,null,null,null,null,null,null,null,null,null,0]
[{"$f":"IF(ISBLANK(C258),\"\",COUNTA($C$3:C258))","v":""},null,null,null,null,null,null,null,null,null,null,null,null,null,null,null,null,0]
[{"$f":"IF(ISBLANK(C259),\"\",COUNTA($C$3:C259))","v":""},null,null,null,null,null,null,null,null,null,null,null,null,null,null,null,null,0]
[{"$f":"IF(ISBLANK(C260),\"\",COUNTA($C$3:C260))","v":""},null,null,null,null,null,null,null,null,null,null,null,null,null,null,null,null,{"$f":"SUMIFS($H$3:$H$100,E$3:E$100,Q260)","v":0}]
[{"$f":"IF(ISBLANK(C261),\"\",COUNTA($C$3:C261))","v":""},null,null,null,null,null,null,null,null,null,null,null,null,null,null,null,null,0]
[{"$f":"IF(ISBLANK(C262),\"\",COUNTA($C$3:C262))","v":""},null,null,null,null,null,null,null,null,null,null,null,null,null,null,null,null,0]
[{"$f":"IF(ISBLANK(C263),\"\",COUNTA($C$3:C263))","v":""},null,null,null,null,null,null,null,null,null,null,null,null,null,null,null,null,0]
[{"$f":"IF(ISBLANK(C264),\"\",COUNTA($C$3:C264))","v":""},null,null,null,null,null,null,null,null,null,null,null,null,null,null,null,null,0]
[{"$f":"IF(ISBLANK(C265),\"\",COUNTA($C$3:C265))","v":""},null,null,null,null,null,null,null,null,null,null,null,null,null,null,null,null,0]
[{"$f":"IF(ISBLANK(C266),\"\",COUNTA($C$3:C266))","v":""},null,null,null,null,null,null,null,null,null,null,null,null,null,null,null,null,0]
[{"$f":"IF(ISBLANK(C267),\"\",COUNTA($C$3:C267))","v":""},null,null,null,null,null,null,null,null,null,null,null,null,null,null,null,null,0]
[{"$f":"IF(ISBLANK(C268),\"\",COUNTA($C$3:C268))","v":""},null,null,null,null,null,null,null,null,null,null,null,null,null,null,null,null,0]
[{"$f":"IF(ISBLANK(C269),\"\",COUNTA($C$3:C269))","v":""},null,null,null,null,null,null,null,null,null,null,null,null,null,null,null,null,0]
[{"$f":"IF(ISBLANK(C270),\"\",COUNTA($C$3:C270))","v":""},null,null,null,null,null,null,null,null,null,null,null,null,null,null,null,null,0]
[{"$f":"IF(ISBLANK(C271),\"\",COUNTA($C$3:C271))","v":""},null,null,null,null,null,null,null,null,null,null,null,null,null,null,null,null,0]
[{"$f":"IF(ISBLANK(C272),\"\",COUNTA($C$3:C272))","v":""},null,null,null,null,null,null,null,null,null,null,null,null,null,null,null,null,0]
[{"$f":"IF(ISBLANK(C273),\"\",COUNTA($C$3:C273))","v":""},null,null,null,null,null,null,null,null,null,null,null,null,null,null,null,null,0]
[{"$f":"IF(ISBLANK(C274),\"\",COUNTA($C$3:C274))","v":""},null,null,null,null,null,null,null,null,null,null,null,null,null,null,null,null,0]
[{"$f":"IF(ISBLANK(C275),\"\",COUNTA($C$3:C275))","v":""},null,null,null,null,null,null,null,null,null,null,null,null,null,null,null,null,0]
[{"$f":"IF(ISBLANK(C276),\"\",COUNTA($C$3:C276))","v":""},null,null,null,null,null,null,null,null,null,null,null,null,null,null,null,null,0]
[{"$f":"IF(ISBLANK(C277),\"\",COUNTA($C$3:C277))","v":""},null,null,null,null,null,null,null,null,null,null,null,null,null,null,null,null,0]
[{"$f":"IF(ISBLANK(C278),\"\",COUNTA($C$3:C278))","v":""},null,null,null,null,null,null,null,null,null,null,null,null,null,null,null,null,0]
[{"$f":"IF(ISBLANK(C279),\"\",COUNTA($C$3:C279))","v":""},null,null,null,null,null,null,null,null,null,null,null,null,null,null,null,null,0]
[{"$f":"IF(ISBLANK(C280),\"\",COUNTA($C$3:C280))","v":""},null,null,null,null,null,null,null,null,null,null,null,null,null,null,null,null,0]
[{"$f":"IF(ISBLANK(C281),\"\",COUNTA($C$3:C281))","v":""},null,null,null,null,null,null,null,null,null,null,null,null,null,null,null,null,0]
[{"$f":"IF(ISBLANK(C282),\"\",COUNTA($C$3:C282))","v":""},null,null,null,null,null,null,null,null,null,null,null,null,null,null,null,null,0]
[{"$f":"IF(ISBLANK(C283),\"\",COUNTA($C$3:C283))","v":""},null,null,null,null,null,null,null,null,null,null,null,null,null,null,null,null,0]
[{"$f":"IF(ISBLANK(C284),\"\",COUNTA($C$3:C284))","v":""},null,null,null,null,null,null,null,null,null,null,null,null,null,null,null,null,0]
[{"$f":"IF(ISBLANK(C285),\"\",COUNTA($C$3:C285))","v":""},null,null,null,null,null,null,null,null,null,null,null,null,null,null,null,null,0]
[{"$f":"IF(ISBLANK(C286),\"\",COUNTA($C$3:C286))","v":""},null,null,null,null,null,null,null,null,null,null,null,null,null,null,null,null,0]
[{"$f":"IF(ISBLANK(C287),\"\",COUNTA($C$3:C287))","v":""},null,null,null,null,null,null,null,null,null,null,null,null,null,null,null,null,0]
[{"$f":"IF(ISBLANK(C288),\"\",COUNTA($C$3:C288))","v":""},null,null,null,null,null,null,null,null,null,null,null,null,null,null,null,null,0]
[{"$f":"IF(ISBLANK(C289),\"\",COUNTA($C$3:C289))","v":""},null,null,null,null,null,null,null,null,null,null,null,null,null,null,null,null,0]
[{"$f":"IF(ISBLANK(C290),\"\",COUNTA($C$3:C290))","v":""},null,null,null,null,null,null,null,null,null,null,null,null,null,null,null,null,0]
[{"$f":"IF(ISBLANK(C291),\"\",COUNTA($C$3:C291))","v":""},null,null,null,null,null,null,null,null,null,null,null,null,null,null,null,null,0]
[{"$f":"IF(ISBLANK(C292),\"\",COUNTA($C$3:C292))","v":""},null,null,null,null,null,null,null,null,null,null,null,null,null,null,null,null,0]
[{"$f":"IF(ISBLANK(C293),\"\",COUNTA($C$3:C293))","v":""},null,null,null,null,null,null,null,null,null,null,null,null,null,null,null,null,0]
[{"$f":"IF(ISBLANK(C294),\"\",COUNTA($C$3:C294))","v":""},null,null,null,null,null,null,null,null,null,null,null,null,null,null,null,null,0]
[{"$f":"IF(ISBLANK(C295),\"\",COUNTA($C$3:C295))","v":""},null,null,null,null,null,null,null,null,null,null,null,null,null,null,null,null,0]
[{"$f":"IF(ISBLANK(C296),\"\",COUNTA($C$3:C296))","v":""},null,null,null,null,null,null,null,null,null,null,null,null,null,null,null,null,0]
[{"$f":"IF(ISBLANK(C297),\"\",COUNTA($C$3:C297))","v":""},null,null,null,null,null,null,null,null,null,null,null,null,null,null,null,null,0]
[{"$f":"IF(ISBLANK(C298),\"\",COUNTA($C$3:C298))","v":""},null,null,null,null,null,null,null,null,null,null,null,null,null,null,null,null,0]
[{"$f":"IF(ISBLANK(C299),\"\",COUNTA($C$3:C299))","v":""},null,null,null,null,null,null,null,null,null,null,null,null,null,null,null,null,0]
[{"$f":"IF(ISBLANK(C300),\"\",COUNTA($C$3:C300))","v":""},null,null,null,null,null,null,null,null,null,null,null,null,null,null,null,null,0]
[{"$f":"IF(ISBLANK(C301),\"\",COUNTA($C$3:C301))","v":""},null,null,null,null,null,null,null,null,null,null,null,null,null,null,null,null,0]
[{"$f":"IF(ISBLANK(C302),\"\",COUNTA($C$3:C302))","v":""},null,null,null,null,null,null,null,null,null,null,null,null,null,null,null,null,0]
[{"$f":"IF(ISBLANK(C303),\"\",COUNTA($C$3:C303))","v":""},null,null,null,null,null,null,null,null,null,null,null,null,null,null,null,null,0]
[{"$f":"IF(ISBLANK(C304),\"\",COUNTA($C$3:C304))","v":""},null,null,null,null,null,null,null,null,null,null,null,null,null,null,null,null,0]
[{"$f":"IF(ISBLANK(C305),\"\",COUNTA($C$3:C305))","v":""},null,null,null,null,null,null,null,null,null,null,null,null,null,null,null,null,0]
[{"$f":"IF(ISBLANK(C306),\"\",COUNTA($C$3:C306))","v":""},null,null,null,null,null,null,null,null,null,null,null,null,null,null,null,null,0]
[{"$f":"IF(ISBLANK(C307),\"\",COUNTA($C$3:C307))","v":""},null,null,null,null,null,null,null,null,null,null,null,null,null,null,null,null,0]
[{"$f":"IF(ISBLANK(C308),\"\",COUNTA($C$3:C308))","v":""},null,null,null,null,null,null,null,null,null,null,null,null,null,null,null,null,0]
[{"$f":"IF(ISBLANK(C309),\"\",COUNTA($C$3:C309))","v":""},null,null,null,null,null,null,null,null,null,null,null,null,null,null,null,null,0]
[{"$f":"IF(ISBLANK(C310),\"\",COUNTA($C$3:C310))","v":""},null,null,null,null,null,null,null,null,null,null,null,null,null,null,null,null,0]
[{"$f":"IF(ISBLANK(C311),\"\",COUNTA($C$3:C311))","v":""},null,null,null,null,null,null,null,null,null,null,null,null,null,null,null,null,0]
[{"$f":"IF(ISBLANK(C312),\"\",COUNTA($C$3:C312))","v":""},null,null,null,null,null,null,null,null,null,null,null,null,null,null,null,null,0]
[{"$f":"IF(ISBLANK(C313),\"\",COUNTA($C$3:C313))","v":""},null,null,null,null,null,null,null,null,null,null,null,null,null,null,null,null,0]
[{"$f":"IF(ISBLANK(C314),\"\",COUNTA($C$3:C314))","v":""},null,null,null,null,null,null,null,null,null,null,null,null,null,null,null,null,0]
[{"$f":"IF(ISBLANK(C315),\"\",COUNTA($C$3:C315))","v":""},null,null,null,null,null,null,null,null,null,null,null,null,null,null,null,null,0]
[{"$f":"IF(ISBLANK(C316),\"\",COUNTA($C$3:C316))","v":""},null,null,null,null,null,null,null,null,null,null,null,null,null,null,null,null,0]
[{"$f":"IF(ISBLANK(C317),\"\",COUNTA($C$3:C317))","v":""},null,null,null,null,null,null,null,null,null,null,null,null,null,null,null,null,0]
[{"$f":"IF(ISBLANK(C318),\"\",COUNTA($C$3:C318))","v":""},null,null,null,null,null,null,null,null,null,null,null,null,null,null,null,null,0]
[{"$f":"IF(ISBLANK(C319),\"\",COUNTA($C$3:C319))","v":""},null,null,null,null,null,null,null,null,null,null,null,null,null,null,null,null,0]
[{"$f":"IF(ISBLANK(C320),\"\",COUNTA($C$3:C320))","v":""},null,null,null,null,null,null,null,null,null,null,null,null,null,null,null,null,0]
[{"$f":"IF(ISBLANK(C321),\"\",COUNTA($C$3:C321))","v":""},null,null,null,null,null,null,null,null,null,null,null,null,null,null,null,null,0]
[{"$f":"IF(ISBLANK(C322),\"\",COUNTA($C$3:C322))","v":""},null,null,null,null,null,null,null,null,null,null,null,null,null,null,null,null,0]
[{"$f":"IF(ISBLANK(C323),\"\",COUNTA($C$3:C323))","v":""},null,null,null,null,null,null,null,null,null,null,null,null,null,null,null,null,0]
[{"$f":"IF(ISBLANK(C324),\"\",COUNTA($C$3:C324))","v":""},null,null,null,null,null,null,null,null,null,null,null,null,null,null,null,null,{"$f":"SUMIFS($H$3:$H$100,E$3:E$100,Q324)","v":0}]
[{"$f":"IF(ISBLANK(C325),\"\",COUNTA($C$3:C325))","v":""},null,null,null,null,null,null,null,null,null,null,null,null,null,null,null,null,0]
[{"$f":"IF(ISBLANK(C326),\"\",COUNTA($C$3:C326))","v":""},null,null,null,null,null,null,null,null,null,null,null,null,null,null,null,null,0]
[{"$f":"IF(ISBLANK(C327),\"\",COUNTA($C$3:C327))","v":""},null,null,null,null,null,null,null,null,null,null,null,null,null,null,null,null,0]
[{"$f":"IF(ISBLANK(C328),\"\",COUNTA($C$3:C328))","v":""},null,null,null,null,null,null,null,null,null,null,null,null,null,null,null,null,0]
[{"$f":"IF(ISBLANK(C329),\"\",COUNTA($C$3:C329))","v":""},null,null,null,null,null,null,null,null,null,null,null,null,null,null,null,null,0]
[{"$f":"IF(ISBLANK(C330),\"\",COUNTA($C$3:C330))","v":""},null,null,null,null,null,null,null,null,null,null,null,null,null,null,null,null,0]
[{"$f":"IF(ISBLANK(C331),\"\",COUNTA($C$3:C331))","v":""},null,null,null,null,null,null,null,null,null,null,null,null,null,null,null,null,0]
[{"$f":"IF(ISBLANK(C332),\"\",COUNTA($C$3:C332))","v":""},null,null,null,null,null,null,null,null,null,null,null,null,null,null,null,null,0]
[{"$f":"IF(ISBLANK(C333),\"\",COUNTA($C$3:C333))","v":""},null,null,null,null,null,null,null,null,null,null,null,null,null,null,null,null,0]
[{"$f":"IF(ISBLANK(C334),\"\",COUNTA($C$3:C334))","v":""},null,null,null,null,null,null,null,null,null,null,null,null,null,null,null,null,0]
[{"$f":"IF(ISBLANK(C335),\"\",COUNTA($C$3:C335))","v":""},null,null,null,null,null,null,null,null,null,null,null,null,null,null,null,null,0]
[{"$f":"IF(ISBLANK(C336),\"\",COUNTA($C$3:C336))","v":""},null,null,null,null,null,null,null,null,null,null,null,null,null,null,null,null,0]
[{"$f":"IF(ISBLANK(C337),\"\",COUNTA($C$3:C337))","v":""},null,null,null,null,null,null,null,null,null,null,null,null,null,null,null,null,0]
[{"$f":"IF(ISBLANK(C338),\"\",COUNTA($C$3:C338))","v":""},null,null,null,null,null,null,null,null,null,null,null,null,null,null,null,null,0]
[{"$f":"IF(ISBLANK(C339),\"\",COUNTA($C$3:C339))","v":""},null,null,null,null,null,null,null,null,null,null,null,null,null,null,null,null,0]
[{"$f":"IF(ISBLANK(C340),\"\",COUNTA($C$3:C340))","v":""},null,null,null,null,null,null,null,null,null,null,null,null,null,null,null,null,0]
[{"$f":"IF(ISBLANK(C341),\"\",COUNTA($C$3:C341))","v":""},null,null,null,null,null,null,null,null,null,null,null,null,null,null,null,null,0]
[{"$f":"IF(ISBLANK(C342),\"\",COUNTA($C$3:C342))","v":""},null,null,null,null,null,null,null,null,null,null,null,null,null,null,null,null,0]
[{"$f":"IF(ISBLANK(C343),\"\",COUNTA($C$3:C343))","v":""},null,null,null,null,null,null,null,null,null,null,null,null,null,null,null,null,0]
[{"$f":"IF(ISBLANK(C344),\"\",COUNTA($C$3:C344))","v":""},null,null,null,null,null,null,null,null,null,null,null,null,null,null,null,null,0]
[{"$f":"IF(ISBLANK(C345),\"\",COUNTA($C$3:C345))","v":""},null,null,null,null,null,null,null,null,null,null,null,null,null,null,null,null,0]
[{"$f":"IF(ISBLANK(C346),\"\",COUNTA($C$3:C346))","v":""},null,null,null,null,null,null,null,null,null,null,null,null,null,null,null,null,0]
[{"$f":"IF(ISBLANK(C347),\"\",COUNTA($C$3:C347))","v":""},null,null,null,null,null,null,null,null,null,null,null,null,null,null,null,null,0]
[{"$f":"IF(ISBLANK(C348),\"\",COUNTA($C$3:C348))","v":""},null,null,null,null,null,null,null,null,null,null,null,null,null,null,null,null,0]
[{"$f":"IF(ISBLANK(C349),\"\",COUNTA($C$3:C349))","v":""},null,null,null,null,null,null,null,null,null,null,null,null,null,null,null,null,0]
[{"$f":"IF(ISBLANK(C350),\"\",COUNTA($C$3:C350))","v":""},null,null,null,null,null,null,null,null,null,null,null,null,null,null,null,null,0]
[{"$f":"IF(ISBLANK(C351),\"\",COUNTA($C$3:C351))","v":""},null,null,null,null,null,null,null,null,null,null,null,null,null,null,null,null,0]
[{"$f":"IF(ISBLANK(C352),\"\",COUNTA($C$3:C352))","v":""},null,null,null,null,null,null,null,null,null,null,null,null,null,null,null,null,0]
[{"$f":"IF(ISBLANK(C353),\"\",COUNTA($C$3:C353))","v":""},null,null,null,null,null,null,null,null,null,null,null,null,null,null,null,null,0]
[{"$f":"IF(ISBLANK(C354),\"\",COUNTA($C$3:C354))","v":""},null,null,null,null,null,null,null,null,null,null,null,null,null,null,null,null,0]
[{"$f":"IF(ISBLANK(C355),\"\",COUNTA($C$3:C355))","v":""},null,null,null,null,null,null,null,null,null,null,null,null,null,null,null,null,0]
[{"$f":"IF(ISBLANK(C356),\"\",COUNTA($C$3:C356))","v":""},null,null,null,null,null,null,null,null,null,null,null,null,null,null,null,null,0]
[{"$f":"IF(ISBLANK(C357),\"\",COUNTA($C$3:C357))","v":""},null,null,null,null,null,null,null,null,null,null,null,null,null,null,null,null,0]
[{"$f":"IF(ISBLANK(C358),\"\",COUNTA($C$3:C358))","v":""},null,null,null,null,null,null,null,null,null,null,null,null,null,null,null,null,0]
[{"$f":"IF(ISBLANK(C359),\"\",COUNTA($C$3:C359))","v":""},null,null,null,null,null,null,null,null,null,null,null,null,null,null,null,null,0]
[{"$f":"IF(ISBLANK(C360),\"\",COUNTA($C$3:C360))","v":""},null,null,null,null,null,null,null,null,null,null,null,null,null,null,null,null,0]
[{"$f":"IF(ISBLANK(C361),\"\",COUNTA($C$3:C361))","v":""},null,null,null,null,null,null,null,null,null,null,null,null,null,null,null,null,0]
[{"$f":"IF(ISBLANK(C362),\"\",COUNTA($C$3:C362))","v":""},null,null,null,null,null,null,null,null,null,null,null,null,null,null,null,null,0]
[{"$f":"IF(ISBLANK(C363),\"\",COUNTA($C$3:C363))","v":""},null,null,null,null,null,null,null,null,null,null,null,null,null,null,null,null,0]
[{"$f":"IF(ISBLANK(C364),\"\",COUNTA($C$3:C364))","v":""},null,null,null,null,null,null,null,null,null,null,null,null,null,null,null,null,0]
[{"$f":"IF(ISBLANK(C365),\"\",COUNTA($C$3:C365))","v":""},null,null,null,null,null,null,null,null,null,null,null,null,null,null,null,null,0]
[{"$f":"IF(ISBLANK(C366),\"\",COUNTA($C$3:C366))","v":""},null,null,null,null,null,null,null,null,null,null,null,null,null,null,null,null,0]
[{"$f":"IF(ISBLANK(C367),\"\",COUNTA($C$3:C367))","v":""},null,null,null,null,null,null,null,null,null,null,null,null,null,null,null,null,0]
[{"$f":"IF(ISBLANK(C368),\"\",COUNTA($C$3:C368))","v":""},null,null,null,null,null,null,null,null,null,null,null,null,null,null,null,null,0]
[{"$f":"IF(ISBLANK(C369),\"\",COUNTA($C$3:C369))","v":""},null,null,null,null,null,null,null,null,null,null,null,null,null,null,null,null,0]
[{"$f":"IF(ISBLANK(C370),\"\",COUNTA($C$3:C370))","v":""},null,null,null,null,null,null,null,null,null,null,null,null,null,null,null,null,0]
[{"$f":"IF(ISBLANK(C371),\"\",COUNTA($C$3:C371))","v":""},null,null,null,null,null,null,null,null,null,null,null,null,null,null,null,null,0]
[{"$f":"IF(ISBLANK(C372),\"\",COUNTA($C$3:C372))","v":""},null,null,null,null,null,null,null,null,null,null,null,null,null,null,null,null,0]
[{"$f":"IF(ISBLANK(C373),\"\",COUNTA($C$3:C373))","v":""},null,null,null,null,null,null,null,null,null,null,null,null,null,null,null,null,0]
[{"$f":"IF(ISBLANK(C374),\"\",COUNTA($C$3:C374))","v":""},null,null,null,null,null,null,null,null,null,null,null,null,null,null,null,null,0]
[{"$f":"IF(ISBLANK(C375),\"\",COUNTA($C$3:C375))","v":""},null,null,null,null,null,null,null,null,null,null,null,null,null,null,null,null,0]
[{"$f":"IF(ISBLANK(C376),\"\",COUNTA($C$3:C376))","v":""},null,null,null,null,null,null,null,null,null,null,null,null,null,null,null,null,0]
[{"$f":"IF(ISBLANK(C377),\"\",COUNTA($C$3:C377))","v":""},null,null,null,null,null,null,null,null,null,null,null,null,null,null,null,null,0]
[{"$f":"IF(ISBLANK(C378),\"\",COUNTA($C$3:C378))","v":""},null,null,null,null,null,null,null,null,null,null,null,null,null,null,null,null,0]
[{"$f":"IF(ISBLANK(C379),\"\",COUNTA($C$3:C379))","v":""},null,null,null,null,null,null,null,null,null,null,null,null,null,null,null,null,0]
[{"$f":"IF(ISBLANK(C380),\"\",COUNTA($C$3:C380))","v":""},null,null,null,null,null,null,null,null,null,null,null,null,null,null,null,null,0]
[{"$f":"IF(ISBLANK(C381),\"\",COUNTA($C$3:C381))","v":""},null,null,null,null,null,null,null,null,null,null,null,null,null,null,null,null,0]
[{"$f":"IF(ISBLANK(C382),\"\",COUNTA($C$3:C382))","v":""},null,null,null,null,null,null,null,null,null,null,null,null,null,null,null,null,0]
[{"$f":"IF(ISBLANK(C383),\"\",COUNTA($C$3:C383))","v":""},null,null,null,null,null,null,null,null,null,null,null,null,null,null,null,null,0]
[{"$f":"IF(ISBLANK(C384),\"\",COUNTA($C$3:C384))","v":""},null,null,null,null,null,null,null,null,null,null,null,null,null,null,null,null,0]
[{"$f":"IF(ISBLANK(C385),\"\",COUNTA($C$3:C385))","v":""},null,null,null,null,null,null,null,null,null,null,null,null,null,null,null,null,0]
[{"$f":"IF(ISBLANK(C386),\"\",COUNTA($C$3:C386))","v":""},null,null,null,null,null,null,null,null,null,null,null,null,null,null,null,null,0]
[{"$f":"IF(ISBLANK(C387),\"\",COUNTA($C$3:C387))","v":""},null,null,null,null,null,null,null,null,null,null,null,null,null,null,null,null,0]
[{"$f":"IF(ISBLANK(C388),\"\",COUNTA($C$3:C388))","v":""},null,null,null,null,null,null,null,null,null,null,null,null,null,null,null,null,{"$f":"SUMIFS($H$3:$H$100,E$3:E$100,Q388)","v":0}]
[{"$f":"IF(ISBLANK(C389),\"\",COUNTA($C$3:C389))","v":""},null,null,null,null,null,null,null,null,null,null,null,null,null,null,null,null,0]
[{"$f":"IF(ISBLANK(C390),\"\",COUNTA($C$3:C390))","v":""},null,null,null,null,null,null,null,null,null,null,null,null,null,null,null,null,0]
[{"$f":"IF(ISBLANK(C391),\"\",COUNTA($C$3:C391))","v":""},null,null,null,null,null,null,null,null,null,null,null,null,null,null,null,null,0]
[{"$f":"IF(ISBLANK(C392),\"\",COUNTA($C$3:C392))","v":""},null,null,null,null,null,null,null,null,null,null,null,null,null,null,null,null,0]
[{"$f":"IF(ISBLANK(C393),\"\",COUNTA($C$3:C393))","v":""},null,null,null,null,null,null,null,null,null,null,null,null,null,null,null,null,0]
[{"$f":"IF(ISBLANK(C394),\"\",COUNTA($C$3:C394))","v":""},null,null,null,null,null,null,null,null,null,null,null,null,null,null,null,null,0]
[{"$f":"IF(ISBLANK(C395),\"\",COUNTA($C$3:C395))","v":""},null,null,null,null,null,null,null,null,null,null,null,null,null,null,null,null,0]
[{"$f":"IF(ISBLANK(C396),\"\",COUNTA($C$3:C396))","v":""},null,null,null,null,null,null,null,null,null,null,null,null,null,null,null,null,0]
[{"$f":"IF(ISBLANK(C397),\"\",COUNTA($C$3:C397))","v":""},null,null,null,null,null,null,null,null,null,null,null,null,null,null,null,null,0]
[{"$f":"IF(ISBLANK(C398),\"\",COUNTA($C$3:C398))","v":""},null,null,null,null,null,null,null,null,null,null,null,null,null,null,null,null,0]
[{"$f":"IF(ISBLANK(C399),\"\",COUNTA($C$3:C399))","v":""},null,null,null,null,null,null,null,null,null,null,null,null,null,null,null,null,0]
[{"$f":"IF(ISBLANK(C400),\"\",COUNTA($C$3:C400))","v":""},null,null,null,null,null,null,null,null,null,null,null,null,null,null,null,null,0]
[{"$f":"IF(ISBLANK(C401),\"\",COUNTA($C$3:C401))","v":""},null,null,null,null,null,null,null,null,null,null,null,null,null,null,null,null,0]
[{"$f":"IF(ISBLANK(C402),\"\",COUNTA($C$3:C402))","v":""},null,null,null,null,null,null,null,null,null,null,null,null,null,null,null,null,0]
[{"$f":"IF(ISBLANK(C403),\"\",COUNTA($C$3:C403))","v":""},null,null,null,null,null,null,null,null,null,null,null,null,null,null,null,null,0]
[{"$f":"IF(ISBLANK(C404),\"\",COUNTA($C$3:C404))","v":""},null,null,null,null,null,null,null,null,null,null,null,null,null,null,null,null,0]
[{"$f":"IF(ISBLANK(C405),\"\",COUNTA($C$3:C405))","v":""},null,null,null,null,null,null,null,null,null,null,null,null,null,null,null,null,0]
[{"$f":"IF(ISBLANK(C406),\"\",COUNTA($C$3:C406))","v":""},null,null,null,null,null,null,null,null,null,null,null,null,null,null,null,null,0]
[{"$f":"IF(ISBLANK(C407),\"\",COUNTA($C$3:C407))","v":""},null,null,null,null,null,null,null,null,null,null,null,null,null,null,null,null,0]
[{"$f":"IF(ISBLANK(C408),\"\",COUNTA($C$3:C408))","v":""}]
[{"$f":"IF(ISBLANK(C409),\"\",COUNTA($C$3:C409))","v":""}]
[{"$f":"IF(ISBLANK(C410),\"\",COUNTA($C$3:C410))","v":""}]
[{"$f":"IF(ISBLANK(C411),\"\",COUNTA($C$3:C411))","v":""}]
[{"$f":"IF(ISBLANK(C412),\"\",COUNTA($C$3:C412))","v":""}]
[{"$f":"IF(ISBLANK(C413),\"\",COUNTA($C$3:C413))","v":""}]
[{"$f":"IF(ISBLANK(C414),\"\",COUNTA($C$3:C414))","v":""}]
[{"$f":"IF(ISBLANK(C415),\"\",COUNTA($C$3:C415))","v":""}]
[{"$f":"IF(ISBLANK(C416),\"\",COUNTA($C$3:C416))","v":""}]
[{"$f":"IF(ISBLANK(C417),\"\",COUNTA($C$3:C417))","v":""}]
[{"$f":"IF(ISBLANK(C418),\"\",COUNTA($C$3:C418))","v":""}]
[{"$f":"IF(ISBLANK(C419),\"\",COUNTA($C$3:C419))","v":""}]
[{"$f":"IF(ISBLANK(C420),\"\",COUNTA($C$3:C420))","v":""}]
[{"$f":"IF(ISBLANK(C421),\"\",COUNTA($C$3:C421))","v":""}]
[{"$f":"IF(ISBLANK(C422),\"\",COUNTA($C$3:C422))","v":""}]
[{"$f":"IF(ISBLANK(C423),\"\",COUNTA($C$3:C423))","v":""}]
[{"$f":"IF(ISBLANK(C424),\"\",COUNTA($C$3:C424))","v":""}]
[{"$f":"IF(ISBLANK(C425),\"\",COUNTA($C$3:C425))","v":""}]
[{"$f":"IF(ISBLANK(C426),\"\",COUNTA($C$3:C426))","v":""}]
[{"$f":"IF(ISBLANK(C427),\"\",COUNTA($C$3:C427))","v":""}]
[{"$f":"IF(ISBLANK(C428),\"\",COUNTA($C$3:C428))","v":""}]
[{"$f":"IF(ISBLANK(C429),\"\",COUNTA($C$3:C429))","v":""}]
[{"$f":"IF(ISBLANK(C430),\"\",COUNTA($C$3:C430))","v":""}]
[{"$f":"IF(ISBLANK(C431),\"\",COUNTA($C$3:C431))","v":""}]
[{"$f":"IF(ISBLANK(C432),\"\",COUNTA($C$3:C432))","v":""}]
[{"$f":"IF(ISBLANK(C433),\"\",COUNTA($C$3:C433))","v":""}]
[{"$f":"IF(ISBLANK(C434),\"\",COUNTA($C$3:C434))","v":""}]
[{"$f":"IF(ISBLANK(C435),\"\",COUNTA($C$3:C435))","v":""}]
[{"$f":"IF(ISBLANK(C436),\"\",COUNTA($C$3:C436))","v":""}]
[{"$f":"IF(ISBLANK(C437),\"\",COUNTA($C$3:C437))","v":""}]
[{"$f":"IF(ISBLANK(C438),\"\",COUNTA($C$3:C438))","v":""}]
[{"$f":"IF(ISBLANK(C439),\"\",COUNTA($C$3:C439))","v":""}]
[{"$f":"IF(ISBLANK(C440),\"\",COUNTA($C$3:C440))","v":""}]
[{"$f":"IF(ISBLANK(C441),\"\",COUNTA($C$3:C441))","v":""}]
[{"$f":"IF(ISBLANK(C442),\"\",COUNTA($C$3:C442))","v":""}]
[{"$f":"IF(ISBLANK(C443),\"\",COUNTA($C$3:C443))","v":""}]
[{"$f":"IF(ISBLANK(C444),\"\",COUNTA($C$3:C444))","v":""}]
[{"$f":"IF(ISBLANK(C445),\"\",COUNTA($C$3:C445))","v":""}]
[{"$f":"IF(ISBLANK(C446),\"\",COUNTA($C$3:C446))","v":""}]
[{"$f":"IF(ISBLANK(C447),\"\",COUNTA($C$3:C447))","v":""}]
[{"$f":"IF(ISBLANK(C448),\"\",COUNTA($C$3:C448))","v":""}]
[{"$f":"IF(ISBLANK(C449),\"\",COUNTA($C$3:C449))","v":""}]
[{"$f":"IF(ISBLANK(C450),\"\",COUNTA($C$3:C450))","v":""}]
[{"$f":"IF(ISBLANK(C451),\"\",COUNTA($C$3:C451))","v":""}]
[{"$f":"IF(ISBLANK(C452),\"\",COUNTA($C$3:C452))","v":""}]
[{"$f":"IF(ISBLANK(C453),\"\",COUNTA($C$3:C453))","v":""}]
[{"$f":"IF(ISBLANK(C454),\"\",COUNTA($C$3:C454))","v":""}]
[{"$f":"IF(ISBLANK(C455),\"\",COUNTA($C$3:C455))","v":""}]
[{"$f":"IF(ISBLANK(C456),\"\",COUNTA($C$3:C456))","v":""}]
[{"$f":"IF(ISBLANK(C457),\"\",COUNTA($C$3:C457))","v":""}]
[{"$f":"IF(ISBLANK(C458),\"\",COUNTA($C$3:C458))","v":""}]
[{"$f":"IF(ISBLANK(C459),\"\",COUNTA($C$3:C459))","v":""}]
[{"$f":"IF(ISBLANK(C460),\"\",COUNTA($C$3:C460))","v":""}]
[{"$f":"IF(ISBLANK(C461),\"\",COUNTA($C$3:C461))","v":""}]
[{"$f":"IF(ISBLANK(C462),\"\",COUNTA($C$3:C462))","v":""}]
[{"$f":"IF(ISBLANK(C463),\"\",COUNTA($C$3:C463))","v":""}]
[{"$f":"IF(ISBLANK(C464),\"\",COUNTA($C$3:C464))","v":""}]
[{"$f":"IF(ISBLANK(C465),\"\",COUNTA($C$3:C465))","v":""}]
[{"$f":"IF(ISBLANK(C466),\"\",COUNTA($C$3:C466))","v":""}]
[{"$f":"IF(ISBLANK(C467),\"\",COUNTA($C$3:C467))","v":""}]
[{"$f":"IF(ISBLANK(C468),\"\",COUNTA($C$3:C468))","v":""}]
[{"$f":"IF(ISBLANK(C469),\"\",COUNTA($C$3:C469))","v":""}]
[{"$f":"IF(ISBLANK(C470),\"\",COUNTA($C$3:C470))","v":""}]
[{"$f":"IF(ISBLANK(C471),\"\",COUNTA($C$3:C471))","v":""}]
[{"$f":"IF(ISBLANK(C472),\"\",COUNTA($C$3:C472))","v":""}]
[{"$f":"IF(ISBLANK(C473),\"\",COUNTA($C$3:C473))","v":""}]
[{"$f":"IF(ISBLANK(C474),\"\",COUNTA($C$3:C474))","v":""}]
[{"$f":"IF(ISBLANK(C475),\"\",COUNTA($C$3:C475))","v":""}]
[{"$f":"IF(ISBLANK(C476),\"\",COUNTA($C$3:C476))","v":""}]
[{"$f":"IF(ISBLANK(C477),\"\",COUNTA($C$3:C477))","v":""}]
[{"$f":"IF(ISBLANK(C478),\"\",COUNTA($C$3:C478))","v":""}]
[{"$f":"IF(ISBLANK(C479),\"\",COUNTA($C$3:C479))","v":""}]
[{"$f":"IF(ISBLANK(C480),\"\",COUNTA($C$3:C480))","v":""}]
[{"$f":"IF(ISBLANK(C481),\"\",COUNTA($C$3:C481))","v":""}]
[{"$f":"IF(ISBLANK(C482),\"\",COUNTA($C$3:C482))","v":""}]
[{"$f":"IF(ISBLANK(C483),\"\",COUNTA($C$3:C483))","v":""}]
[{"$f":"IF(ISBLANK(C484),\"\",COUNTA($C$3:C484))","v":""}]
[{"$f":"IF(ISBLANK(C485),\"\",COUNTA($C$3:C485))","v":""}]
[{"$f":"IF(ISBLANK(C486),\"\",COUNTA($C$3:C486))","v":""}]
[{"$f":"IF(ISBLANK(C487),\"\",COUNTA($C$3:C487))","v":""}]
[{"$f":"IF(ISBLANK(C488),\"\",COUNTA($C$3:C488))","v":""}]
[{"$f":"IF(ISBLANK(C489),\"\",COUNTA($C$3:C489))","v":""}]
[{"$f":"IF(ISBLANK(C490),\"\",COUNTA($C$3:C490))","v":""}]
[{"$f":"IF(ISBLANK(C491),\"\",COUNTA($C$3:C491))","v":""}]
[{"$f":"IF(ISBLANK(C492),\"\",COUNTA($C$3:C492))","v":""}]
[{"$f":"IF(ISBLANK(C493),\"\",COUNTA($C$3:C493))","v":""}]
[{"$f":"IF(ISBLANK(C494),\"\",COUNTA($C$3:C494))","v":""}]
[{"$f":"IF(ISBLANK(C495),\"\",COUNTA($C$3:C495))","v":""}]
[{"$f":"IF(ISBLANK(C496),\"\",COUNTA($C$3:C496))","v":""}]
[{"$f":"IF(ISBLANK(C497),\"\",COUNTA($C$3:C497))","v":""}]
[{"$f":"IF(ISBLANK(C498),\"\",COUNTA($C$3:C498))","v":""}]
[{"$f":"IF(ISBLANK(C499),\"\",COUNTA($C$3:C499))","v":""}]
[{"$f":"IF(ISBLANK(C500),\"\",COUNTA($C$3:C500))","v":""}]
[{"$f":"IF(ISBLANK(C501),\"\",COUNTA($C$3:C501))","v":""}]
[{"$f":"IF(ISBLANK(C502),\"\",COUNTA($C$3:C502))","v":""}]
[{"$f":"IF(ISBLANK(C503),\"\",COUNTA($C$3:C503))","v":""}]
[{"$f":"IF(ISBLANK(C504),\"\",COUNTA($C$3:C504))","v":""}]
[{"$f":"IF(ISBLANK(C505),\"\",COUNTA($C$3:C505))","v":""}]
[{"$f":"IF(ISBLANK(C506),\"\",COUNTA($C$3:C506))","v":""}]
[{"$f":"IF(ISBLANK(C507),\"\",COUNTA($C$3:C507))","v":""}]
[{"$f":"IF(ISBLANK(C508),\"\",COUNTA($C$3:C508))","v":""}]
[{"$f":"IF(ISBLANK(C509),\"\",COUNTA($C$3:C509))","v":""}]
[{"$f":"IF(ISBLANK(C510),\"\",COUNTA($C$3:C510))","v":""}]
[{"$f":"IF(ISBLANK(C511),\"\",COUNTA($C$3:C511))","v":""}]
[{"$f":"IF(ISBLANK(C512),\"\",COUNTA($C$3:C512))","v":""}]
[{"$f":"IF(ISBLANK(C513),\"\",COUNTA($C$3:C513))","v":""}]
[{"$f":"IF(ISBLANK(C514),\"\",COUNTA($C$3:C514))","v":""}]
[{"$f":"IF(ISBLANK(C515),\"\",COUNTA($C$3:C515))","v":""}]
[{"$f":"IF(ISBLANK(C516),\"\",COUNTA($C$3:C516))","v":""}]
[{"$f":"IF(ISBLANK(C517),\"\",COUNTA($C$3:C517))","v":""}]
[{"$f":"IF(ISBLANK(C518),\"\",COUNTA($C$3:C518))","v":""}]
[{"$f":"IF(ISBLANK(C519),\"\",COUNTA($C$3:C519))","v":""}]
[{"$f":"IF(ISBLANK(C520),\"\",COUNTA($C$3:C520))","v":""}]
[{"$f":"IF(ISBLANK(C521),\"\",COUNTA($C$3:C521))","v":""}]
[{"$f":"IF(ISBLANK(C522),\"\",COUNTA($C$3:C522))","v":""}]
[{"$f":"IF(ISBLANK(C523),\"\",COUNTA($C$3:C523))","v":""}]
[{"$f":"IF(ISBLANK(C524),\"\",COUNTA($C$3:C524))","v":""}]
[{"$f":"IF(ISBLANK(C525),\"\",COUNTA($C$3:C525))","v":""}]
[{"$f":"IF(ISBLANK(C526),\"\",COUNTA($C$3:C526))","v":""}]
[{"$f":"IF(ISBLANK(C527),\"\",COUNTA($C$3:C527))","v":""}]
[{"$f":"IF(ISBLANK(C528),\"\",COUNTA($C$3:C528))","v":""}]
[{"$f":"IF(ISBLANK(C529),\"\",COUNTA($C$3:C529))","v":""}]
[{"$f":"IF(ISBLANK(C530),\"\",COUNTA($C$3:C530))","v":""}]
[{"$f":"IF(ISBLANK(C531),\"\",COUNTA($C$3:C531))","v":""}]
[{"$f":"IF(ISBLANK(C532),\"\",COUNTA($C$3:C532))","v":""}]
[{"$f":"IF(ISBLANK(C533),\"\",COUNTA($C$3:C533))","v":""}]
[{"$f":"IF(ISBLANK(C534),\"\",COUNTA($C$3:C534))","v":""}]
[{"$f":"IF(ISBLANK(C535),\"\",COUNTA($C$3:C535))","v":""}]

{"sheet":"ИБ Выдача","index":1,"n_rows":2,"n_cols":21,"rows_kept":2,"cut":false,"hidden":false,"merged":[]}
[]
["№пп","Дата поступления","Цех поступления","№ вагона/вновь изготовленное","Номенклтурный номер","Наименование","Заводской номер","Количество","Остаток","Характер несоотвествия","Продукцию сдал","Принял решение","Решение","Цена","Дата выдачи продукции на ремонт","Мастер принявший продукцию на ремонт","Куда вывозят (цех, место)","Дата вывоза","ФИО вывозящего продукцию","Отчетный документ","Примечание"]

{"sheet":"Лист3","index":2,"n_rows":0,"n_cols":0,"rows_kept":0,"cut":false,"hidden":false,"merged":[]}